[Event "*** SCC Grand Prix: Titled Tuesday Blitz"]
[Site "Chess.com"]
[Date "2020.09.08"]
[Round "1"]
[White "AleksanderHnydiuk"]
[Black "CzechmVIII"]
[Result "1-0"]
[WhiteElo "2528"]
[BlackElo "2171"]
[TimeControl "180+1"]
[EndTime "10:08:36 PDT"]
[Termination "AleksanderHnydiuk won by checkmate"]

1. e4 {[%clk 0:03:00.9]} 1... c5 {[%clk 0:02:59.6]} 2. Nf3 {[%clk 0:03:00.4]}
2... d6 {[%clk 0:02:59.8]} 3. d4 {[%clk 0:03:00.3]} 3... cxd4 {[%clk 0:03:00.1]}
4. Nxd4 {[%clk 0:03:01.2]} 4... Nf6 {[%clk 0:03:00.1]} 5. Nc3 {[%clk 0:03:01.4]}
5... g6 {[%clk 0:03:00.4]} 6. Be3 {[%clk 0:02:46.8]} 6... Bg7 {[%clk 0:02:59.8]}
7. f3 {[%clk 0:02:47.4]} 7... Nc6 {[%clk 0:03:00]} 8. Qd2 {[%clk 0:02:47.7]}
8... O-O {[%clk 0:03:00]} 9. O-O-O {[%clk 0:02:47.6]} 9... d5 {[%clk 0:03:00.1]}
10. exd5 {[%clk 0:02:43.4]} 10... Nxd5 {[%clk 0:03:00.1]} 11. Nxc6 {[%clk
0:02:43.3]} 11... bxc6 {[%clk 0:03:01]} 12. Bd4 {[%clk 0:02:42.7]} 12... Nxc3
{[%clk 0:03:00.9]} 13. Qxc3 {[%clk 0:02:36.4]} 13... Bh6+ {[%clk 0:03:00.8]} 14.
Be3 {[%clk 0:02:33.7]} 14... Bxe3+ {[%clk 0:03:00.7]} 15. Qxe3 {[%clk
0:02:34.6]} 15... Qb6 {[%clk 0:03:00.8]} 16. Qxe7 {[%clk 0:02:17.9]} 16... Be6
{[%clk 0:03:00.7]} 17. Qa3 {[%clk 0:02:17.4]} 17... Rad8 {[%clk 0:02:59.5]} 18.
Bd3 {[%clk 0:02:02.8]} 18... Rd5 {[%clk 0:02:59.2]} 19. b3 {[%clk 0:02:00.8]}
19... Rfd8 {[%clk 0:02:58.1]} 20. Kb1 {[%clk 0:01:56.3]} 20... c5 {[%clk
0:02:46]} 21. Qc1 {[%clk 0:01:34.6]} 21... c4 {[%clk 0:02:34.4]} 22. Be4 {[%clk
0:01:23.3]} 22... Rxd1 {[%clk 0:02:19]} 23. Rxd1 {[%clk 0:01:24.2]} 23... Rxd1
{[%clk 0:02:18.7]} 24. Qxd1 {[%clk 0:01:23.6]} 24... cxb3 {[%clk 0:02:12.4]} 25.
axb3 {[%clk 0:01:22.3]} 25... Qf2 {[%clk 0:02:09.8]} 26. g4 {[%clk 0:01:07]}
26... Qxh2 {[%clk 0:02:04.7]} 27. Qd8+ {[%clk 0:01:05.5]} 27... Kg7 {[%clk
0:02:04.8]} 28. Qd4+ {[%clk 0:01:05.9]} 28... Kg8 {[%clk 0:01:55.7]} 29. Qxa7
{[%clk 0:01:05.2]} 29... Qd2 {[%clk 0:01:32.7]} 30. Qb8+ {[%clk 0:00:59.7]}
30... Kg7 {[%clk 0:01:32.4]} 31. Qe5+ {[%clk 0:01:00.1]} 31... Kg8 {[%clk
0:01:31.1]} 32. Kb2 {[%clk 0:00:55.1]} 32... Qb4 {[%clk 0:01:06.4]} 33. Bd5
{[%clk 0:00:42.5]} 33... Bxd5 {[%clk 0:00:31.7]} 34. Qxd5 {[%clk 0:00:43.4]}
34... Qf4 {[%clk 0:00:31.4]} 35. c3 {[%clk 0:00:30.3]} 35... h6 {[%clk 0:00:30]}
36. b4 {[%clk 0:00:27.8]} 36... Qh2+ {[%clk 0:00:28.9]} 37. Kb3 {[%clk
0:00:27.4]} 37... Qh1 {[%clk 0:00:26.6]} 38. b5 {[%clk 0:00:24.7]} 38... Qb1+
{[%clk 0:00:26.3]} 39. Kc4 {[%clk 0:00:22.4]} 39... Qa2+ {[%clk 0:00:26.5]} 40.
Kc5 {[%clk 0:00:22.2]} 40... Qa3+ {[%clk 0:00:25.5]} 41. Kd4 {[%clk 0:00:18.7]}
41... Qa7+ {[%clk 0:00:20.7]} 42. Qc5 {[%clk 0:00:15.7]} 42... Qd7+ {[%clk
0:00:20.8]} 43. Kc4 {[%clk 0:00:14.5]} 43... Qe6+ {[%clk 0:00:19.9]} 44. Kb4
{[%clk 0:00:14.4]} 44... Qe2 {[%clk 0:00:15.6]} 45. b6 {[%clk 0:00:13]} 45...
Qxf3 {[%clk 0:00:15.8]} 46. Qc8+ {[%clk 0:00:11.6]} 46... Kg7 {[%clk 0:00:15.3]}
47. b7 {[%clk 0:00:11.8]} 47... Qe4+ {[%clk 0:00:15]} 48. c4 {[%clk 0:00:10.9]}
48... Qb1+ {[%clk 0:00:14.7]} 49. Kc5 {[%clk 0:00:11.1]} 49... Qg1+ {[%clk
0:00:14.4]} 50. Kc6 {[%clk 0:00:10.8]} 50... Qg2+ {[%clk 0:00:13.3]} 51. Kb5
{[%clk 0:00:09.9]} 51... Qb2+ {[%clk 0:00:12.9]} 52. Kc5 {[%clk 0:00:09.1]}
52... Qf2+ {[%clk 0:00:12.7]} 53. Kc6 {[%clk 0:00:08.6]} 53... Qf3+ {[%clk
0:00:12.6]} 54. Kb5 {[%clk 0:00:08.2]} 54... Qb3+ {[%clk 0:00:12.6]} 55. Ka6
{[%clk 0:00:06.7]} 55... Qa4+ {[%clk 0:00:12.3]} 56. Kb6 {[%clk 0:00:06.9]}
56... Qb4+ {[%clk 0:00:12.7]} 57. Ka7 {[%clk 0:00:07]} 57... Qa5+ {[%clk
0:00:10.9]} 58. Kb8 {[%clk 0:00:07.1]} 58... Qe5+ {[%clk 0:00:11]} 59. Qc7
{[%clk 0:00:07.3]} 59... Qe8+ {[%clk 0:00:11.1]} 60. Ka7 {[%clk 0:00:07.2]}
60... Qe3+ {[%clk 0:00:11.2]} 61. c5 {[%clk 0:00:06.7]} 61... Qa3+ {[%clk
0:00:10.5]} 62. Kb6 {[%clk 0:00:06.9]} 62... Qb4+ {[%clk 0:00:10.3]} 63. Kc6
{[%clk 0:00:07.1]} 63... Qa4+ {[%clk 0:00:10.1]} 64. Kd6 {[%clk 0:00:07]} 64...
Qf4+ {[%clk 0:00:10.1]} 65. Kd7 {[%clk 0:00:07]} 65... Qd4+ {[%clk 0:00:09]} 66.
Qd6 {[%clk 0:00:07]} 66... Qa4+ {[%clk 0:00:08.3]} 67. c6 {[%clk 0:00:06.9]}
67... Qxg4+ {[%clk 0:00:06.8]} 68. Kc7 {[%clk 0:00:07.2]} 68... Qa4 {[%clk
0:00:04.2]} 69. Qe5+ {[%clk 0:00:06.8]} 69... Kh7 {[%clk 0:00:03.8]} 70. b8=Q
{[%clk 0:00:06.6]} 70... Qg4 {[%clk 0:00:03.7]} 71. Qbh8# {[%clk 0:00:05.2]} 1-0

[Event "*** SCC Grand Prix: Titled Tuesday Blitz"]
[Site "Chess.com"]
[Date "2020.09.08"]
[Round "1"]
[White "BigAl"]
[Black "Ramu_K_FM_FT"]
[Result "1-0"]
[WhiteElo "2480"]
[BlackElo "1966"]
[TimeControl "180+1"]
[EndTime "10:08:38 PDT"]
[Termination "BigAl won on time"]

1. e4 {[%clk 0:03:00.9]} 1... c5 {[%clk 0:02:59.2]} 2. c3 {[%clk 0:03:00.6]}
2... d5 {[%clk 0:02:51.4]} 3. exd5 {[%clk 0:03:00.8]} 3... Qxd5 {[%clk
0:02:52.2]} 4. d4 {[%clk 0:03:01.6]} 4... Nc6 {[%clk 0:02:49.4]} 5. Nf3 {[%clk
0:03:02.1]} 5... Bg4 {[%clk 0:02:43]} 6. Be2 {[%clk 0:03:01.7]} 6... cxd4 {[%clk
0:02:37.5]} 7. cxd4 {[%clk 0:03:00]} 7... e6 {[%clk 0:02:34.8]} 8. Nc3 {[%clk
0:03:00.7]} 8... Qa5 {[%clk 0:02:28.5]} 9. O-O {[%clk 0:02:59.4]} 9... Nf6
{[%clk 0:02:25.2]} 10. h3 {[%clk 0:02:58.1]} 10... Bh5 {[%clk 0:02:18.3]} 11. a3
{[%clk 0:02:46.9]} 11... Be7 {[%clk 0:02:11.9]} 12. Be3 {[%clk 0:02:46.6]} 12...
O-O {[%clk 0:02:08.1]} 13. b4 {[%clk 0:02:47.1]} 13... Qd8 {[%clk 0:01:48]} 14.
b5 {[%clk 0:02:42.8]} 14... Na5 {[%clk 0:01:39.3]} 15. g4 {[%clk 0:02:37.7]}
15... Bg6 {[%clk 0:01:37.3]} 16. Ne5 {[%clk 0:02:37.8]} 16... Rc8 {[%clk
0:01:31.6]} 17. Na4 {[%clk 0:02:18.7]} 17... Bc2 {[%clk 0:01:22.1]} 18. Qd2
{[%clk 0:02:07.6]} 18... Nb3 {[%clk 0:01:18.1]} 19. Qe1 {[%clk 0:01:56.9]} 19...
Nxa1 {[%clk 0:01:17]} 20. Nc5 {[%clk 0:01:57.6]} 20... Nb3 {[%clk 0:01:06.5]}
21. Nxb7 {[%clk 0:01:47.9]} 21... Qb6 {[%clk 0:01:05.1]} 22. Nc5 {[%clk
0:01:44.3]} 22... Nxc5 {[%clk 0:01:04]} 23. dxc5 {[%clk 0:01:44.3]} 23... Bxc5
{[%clk 0:01:04.1]} 24. Bg5 {[%clk 0:01:39.3]} 24... Qb7 {[%clk 0:00:54.2]} 25.
Bxf6 {[%clk 0:01:31.3]} 25... gxf6 {[%clk 0:00:55.1]} 26. Bf3 {[%clk 0:01:31.9]}
26... Qe7 {[%clk 0:00:47.9]} 27. Nc6 {[%clk 0:01:31.4]} 27... Qd6 {[%clk
0:00:42.3]} 28. Kg2 {[%clk 0:01:27.6]} 28... Kh8 {[%clk 0:00:38.8]} 29. Qc1
{[%clk 0:01:27.5]} 29... f5 {[%clk 0:00:36.1]} 30. Qxc2 {[%clk 0:01:25.6]} 30...
fxg4 {[%clk 0:00:35.9]} 31. hxg4 {[%clk 0:01:25.7]} 31... Rg8 {[%clk 0:00:34.5]}
32. Rh1 {[%clk 0:01:24.4]} 32... Rg7 {[%clk 0:00:32.3]} 33. Be4 {[%clk
0:01:23.4]} 33... Qf4 {[%clk 0:00:29.5]} 34. f3 {[%clk 0:01:21.5]} 34... f5
{[%clk 0:00:27.6]} 35. Qxc5 {[%clk 0:01:05]} 35... fxe4 {[%clk 0:00:26.5]} 36.
Qc3 {[%clk 0:00:54.7]} 36... exf3+ {[%clk 0:00:24.9]} 37. Kf2 {[%clk 0:00:54.7]}
37... Qxg4 {[%clk 0:00:23.3]} 38. Ke3 {[%clk 0:00:53.4]} 38... Rf8 {[%clk
0:00:21]} 39. Qe5 {[%clk 0:00:48]} 39... f2 {[%clk 0:00:19.5]} 40. Rf1 {[%clk
0:00:48.2]} 40... Qg5+ {[%clk 0:00:18.2]} 41. Qxg5 {[%clk 0:00:48.2]} 41... Rxg5
{[%clk 0:00:19.1]} 42. Nd4 {[%clk 0:00:47.2]} 42... Re5+ {[%clk 0:00:18.3]} 43.
Kd2 {[%clk 0:00:47.5]} 43... Rd5 {[%clk 0:00:18.3]} 44. Ke3 {[%clk 0:00:47.3]}
44... e5 {[%clk 0:00:18.6]} 45. Ne6 {[%clk 0:00:45.4]} 45... Rf6 {[%clk
0:00:17.1]} 46. Ng5 {[%clk 0:00:42.4]} 46... Rxb5 {[%clk 0:00:16.3]} 47. Ne4
{[%clk 0:00:42.9]} 47... Rb3+ {[%clk 0:00:16]} 48. Ke2 {[%clk 0:00:43.2]} 48...
Rb2+ {[%clk 0:00:15.6]} 49. Ke3 {[%clk 0:00:43.4]} 49... Rf4 {[%clk 0:00:16.1]}
50. Nd2 {[%clk 0:00:39.7]} 50... Ra2 {[%clk 0:00:15.1]} 51. Rb1 {[%clk
0:00:34.1]} 51... Rxa3+ {[%clk 0:00:14.9]} 52. Ke2 {[%clk 0:00:35]} 52... f1=Q+
{[%clk 0:00:13.4]} 53. Nxf1 {[%clk 0:00:34.2]} 53... Ra2+ {[%clk 0:00:12.7]} 54.
Ke3 {[%clk 0:00:30.9]} 54... Raf2 {[%clk 0:00:10.3]} 55. Nd2 {[%clk 0:00:29.9]}
55... Rf5 {[%clk 0:00:08.5]} 56. Rb8+ {[%clk 0:00:28.8]} 56... Kg7 {[%clk
0:00:07.8]} 57. Rb7+ {[%clk 0:00:26.7]} 57... Rf7 {[%clk 0:00:07.9]} 58. Rb5
{[%clk 0:00:26.8]} 58... R2f5 {[%clk 0:00:06.5]} 59. Rb1 {[%clk 0:00:24.4]}
59... a5 {[%clk 0:00:06.5]} 60. Ra1 {[%clk 0:00:23.5]} 60... e4 {[%clk
0:00:05.9]} 61. Rg1+ {[%clk 0:00:23]} 61... Kh8 {[%clk 0:00:05]} 62. Nxe4 {[%clk
0:00:23.3]} 62... Re5 {[%clk 0:00:04.9]} 63. Kd4 {[%clk 0:00:22.6]} 63... Re8
{[%clk 0:00:04.5]} 64. Nd6 {[%clk 0:00:20.3]} 64... Rf4+ {[%clk 0:00:04.2]} 65.
Kc5 {[%clk 0:00:20.3]} 65... Re2 {[%clk 0:00:02.9]} 66. Rc1 {[%clk 0:00:17.2]}
66... h5 {[%clk 0:00:02.5]} 67. Rc3 {[%clk 0:00:16.2]} 67... h4 {[%clk
0:00:01.8]} 68. Rb3 {[%clk 0:00:14.1]} 1-0

[Event "*** SCC Grand Prix: Titled Tuesday Blitz"]
[Site "Chess.com"]
[Date "2020.09.08"]
[Round "1"]
[White "Zemerovv"]
[Black "Roaccutane"]
[Result "0-1"]
[WhiteElo "2295"]
[BlackElo "2619"]
[TimeControl "180+1"]
[EndTime "10:08:39 PDT"]
[Termination "Roaccutane won on time"]

1. Nf3 {[%clk 0:02:53.5]} 1... Nf6 {[%clk 0:02:57.6]} 2. c4 {[%clk 0:02:53.1]}
2... c5 {[%clk 0:02:56.8]} 3. Nc3 {[%clk 0:02:53.3]} 3... d5 {[%clk 0:02:54.1]}
4. d4 {[%clk 0:02:52.2]} 4... cxd4 {[%clk 0:02:51.1]} 5. Nxd4 {[%clk 0:02:49.2]}
5... e5 {[%clk 0:02:48.4]} 6. Nf3 {[%clk 0:02:43.3]} 6... d4 {[%clk 0:02:48.2]}
7. Nb5 {[%clk 0:02:39.6]} 7... Nc6 {[%clk 0:02:37.8]} 8. e3 {[%clk 0:02:30.7]}
8... a6 {[%clk 0:02:35.2]} 9. Na3 {[%clk 0:02:27.2]} 9... Bb4+ {[%clk
0:02:34.8]} 10. Bd2 {[%clk 0:02:26.7]} 10... dxe3 {[%clk 0:02:34.8]} 11. fxe3
{[%clk 0:02:26.6]} 11... Bc5 {[%clk 0:02:11.7]} 12. Nc2 {[%clk 0:02:23.1]} 12...
Bg4 {[%clk 0:02:05.8]} 13. b4 {[%clk 0:02:17.7]} 13... Bb6 {[%clk 0:01:53.9]}
14. c5 {[%clk 0:02:16.2]} 14... Bc7 {[%clk 0:01:53.6]} 15. Be2 {[%clk
0:02:10.3]} 15... O-O {[%clk 0:01:49.3]} 16. O-O {[%clk 0:02:08.7]} 16... Re8
{[%clk 0:01:45.3]} 17. h3 {[%clk 0:01:59.9]} 17... Bh5 {[%clk 0:01:37.2]} 18. a4
{[%clk 0:01:49]} 18... Ne4 {[%clk 0:01:26.6]} 19. Be1 {[%clk 0:01:42.8]} 19...
Bg6 {[%clk 0:01:08.5]} 20. b5 {[%clk 0:01:36.4]} 20... axb5 {[%clk 0:01:07]} 21.
axb5 {[%clk 0:01:35.3]} 21... Rxa1 {[%clk 0:01:07.5]} 22. Qxa1 {[%clk
0:01:34.6]} 22... Ne7 {[%clk 0:00:57.5]} 23. Bh4 {[%clk 0:01:26.9]} 23... Nxc5
{[%clk 0:00:53.6]} 24. Rd1 {[%clk 0:01:25.1]} 24... Qb8 {[%clk 0:00:44.6]} 25.
Nb4 {[%clk 0:01:23.6]} 25... e4 {[%clk 0:00:35.1]} 26. Nd4 {[%clk 0:01:17.2]}
26... Bh2+ {[%clk 0:00:25.7]} 27. Kh1 {[%clk 0:01:15.9]} 27... Be5 {[%clk
0:00:25.9]} 28. Bxe7 {[%clk 0:01:13.7]} 28... Rxe7 {[%clk 0:00:25.4]} 29. Nd5
{[%clk 0:01:13.1]} 29... Rd7 {[%clk 0:00:21.7]} 30. Nb6 {[%clk 0:01:10.8]} 30...
Rd8 {[%clk 0:00:21.4]} 31. Qa3 {[%clk 0:01:01.3]} 31... Nd3 {[%clk 0:00:21.5]}
32. Bxd3 {[%clk 0:00:51.9]} 32... exd3 {[%clk 0:00:22.4]} 33. Qe7 {[%clk
0:00:48.7]} 33... Qd6 {[%clk 0:00:20.5]} 34. Qxd6 {[%clk 0:00:43.7]} 34... Bxd6
{[%clk 0:00:21.4]} 35. Nc4 {[%clk 0:00:38.1]} 35... Bc5 {[%clk 0:00:21.5]} 36.
Ne5 {[%clk 0:00:35.2]} 36... Bxd4 {[%clk 0:00:20.6]} 37. exd4 {[%clk 0:00:34.7]}
37... Rxd4 {[%clk 0:00:21.5]} 38. Rd2 {[%clk 0:00:32.5]} 38... Rd5 {[%clk
0:00:18.2]} 39. Nf3 {[%clk 0:00:28.9]} 39... Rxb5 {[%clk 0:00:17.2]} 40. Kg1
{[%clk 0:00:28.7]} 40... h6 {[%clk 0:00:17.5]} 41. Kf2 {[%clk 0:00:29]} 41...
Rc5 {[%clk 0:00:17.9]} 42. Ke3 {[%clk 0:00:28.7]} 42... b5 {[%clk 0:00:18.3]}
43. Nd4 {[%clk 0:00:26.4]} 43... Kf8 {[%clk 0:00:18.4]} 44. Rb2 {[%clk
0:00:25.5]} 44... Re5+ {[%clk 0:00:17.1]} 45. Kd2 {[%clk 0:00:23.5]} 45... Re4
{[%clk 0:00:17.6]} 46. Kc3 {[%clk 0:00:22.8]} 46... b4+ {[%clk 0:00:16.7]} 47.
Rxb4 {[%clk 0:00:20.3]} 47... Re8 {[%clk 0:00:14.1]} 48. Rb7 {[%clk 0:00:19.6]}
48... Kg8 {[%clk 0:00:14.5]} 49. Kd2 {[%clk 0:00:17.3]} 49... Kh7 {[%clk
0:00:13.6]} 50. g4 {[%clk 0:00:16.4]} 50... h5 {[%clk 0:00:13.1]} 51. gxh5
{[%clk 0:00:13.3]} 51... Bxh5 {[%clk 0:00:14]} 52. Kxd3 {[%clk 0:00:13.3]} 52...
Bg6+ {[%clk 0:00:14.9]} 53. Kc4 {[%clk 0:00:12.4]} 53... Re3 {[%clk 0:00:15]}
54. Rb3 {[%clk 0:00:10]} 54... Re8 {[%clk 0:00:14.6]} 55. Rg3 {[%clk 0:00:08.7]}
55... f6 {[%clk 0:00:14.8]} 56. h4 {[%clk 0:00:07.7]} 56... Rd8 {[%clk
0:00:15.1]} 57. Ne6 {[%clk 0:00:06.1]} 57... Bf7 {[%clk 0:00:15.3]} 58. Rxg7+
{[%clk 0:00:04.4]} 58... Kh6 {[%clk 0:00:13.9]} 59. Rxf7 {[%clk 0:00:05.3]}
59... Rc8+ {[%clk 0:00:13.4]} 60. Kd5 {[%clk 0:00:04.4]} 60... Kh5 {[%clk
0:00:14.3]} 61. Rh7+ {[%clk 0:00:03.2]} 61... Kg4 {[%clk 0:00:14]} 62. h5 {[%clk
0:00:02.9]} 62... Ra8 {[%clk 0:00:14]} 63. h6 {[%clk 0:00:02.4]} 63... Kf5
{[%clk 0:00:14.2]} 64. Rg7 {[%clk 0:00:01.2]} 64... Ra5+ {[%clk 0:00:13.7]} 0-1

[Event "*** SCC Grand Prix: Titled Tuesday Blitz"]
[Site "Chess.com"]
[Date "2020.09.08"]
[Round "1"]
[White "GasconJR"]
[Black "GMJustin"]
[Result "1-0"]
[WhiteElo "2546"]
[BlackElo "2211"]
[TimeControl "180+1"]
[EndTime "10:08:39 PDT"]
[Termination "GasconJR won on time"]

1. e4 {[%clk 0:02:59.8]} 1... e5 {[%clk 0:02:54]} 2. Nf3 {[%clk 0:02:07.9]} 2...
Nc6 {[%clk 0:02:50.2]} 3. Bc4 {[%clk 0:02:07]} 3... Bc5 {[%clk 0:02:49]} 4. O-O
{[%clk 0:02:05.8]} 4... Nf6 {[%clk 0:02:46.8]} 5. d3 {[%clk 0:02:05.6]} 5... O-O
{[%clk 0:02:44.2]} 6. h3 {[%clk 0:02:02.6]} 6... d6 {[%clk 0:02:27.9]} 7. c3
{[%clk 0:01:55.9]} 7... Ne7 {[%clk 0:02:18.5]} 8. Re1 {[%clk 0:01:41.2]} 8...
Ng6 {[%clk 0:02:14.3]} 9. Nbd2 {[%clk 0:01:22.3]} 9... c6 {[%clk 0:02:04.9]} 10.
d4 {[%clk 0:01:13.9]} 10... Bb6 {[%clk 0:01:59.7]} 11. Bf1 {[%clk 0:00:59.9]}
11... Re8 {[%clk 0:01:24]} 12. a4 {[%clk 0:00:47]} 12... d5 {[%clk 0:01:09.1]}
13. exd5 {[%clk 0:00:17.4]} 13... e4 {[%clk 0:00:57.4]} 14. Ne5 {[%clk
0:00:17.3]} 14... cxd5 {[%clk 0:00:48.5]} 15. Nxg6 {[%clk 0:00:16.5]} 15... hxg6
{[%clk 0:00:46.8]} 16. Bb5 {[%clk 0:00:17]} 16... Re7 {[%clk 0:00:37.1]} 17. Nf1
{[%clk 0:00:17.4]} 17... a6 {[%clk 0:00:33.6]} 18. Be2 {[%clk 0:00:17.1]} 18...
Be6 {[%clk 0:00:30.3]} 19. Bf4 {[%clk 0:00:14.2]} 19... Bc7 {[%clk 0:00:28.1]}
20. Bxc7 {[%clk 0:00:14]} 20... Qxc7 {[%clk 0:00:27.4]} 21. Ne3 {[%clk
0:00:14.6]} 21... Rd8 {[%clk 0:00:24.6]} 22. Rc1 {[%clk 0:00:14.4]} 22... Nh7
{[%clk 0:00:21.8]} 23. Qb3 {[%clk 0:00:14]} 23... f5 {[%clk 0:00:19.9]} 24. c4
{[%clk 0:00:11.1]} 24... dxc4 {[%clk 0:00:19.4]} 25. Bxc4 {[%clk 0:00:10.9]}
25... Qd7 {[%clk 0:00:16]} 26. d5 {[%clk 0:00:10.5]} 26... Bf7 {[%clk 0:00:15]}
27. d6 {[%clk 0:00:09.2]} 27... Qxd6 {[%clk 0:00:13.3]} 28. Red1 {[%clk
0:00:09.4]} 28... Qb8 {[%clk 0:00:11.3]} 29. Bxf7+ {[%clk 0:00:06.1]} 29... Rxf7
{[%clk 0:00:11.2]} 30. Nd5 {[%clk 0:00:06]} 30... Kh8 {[%clk 0:00:07.8]} 31. Nf4
{[%clk 0:00:06.1]} 31... Rf6 {[%clk 0:00:06.3]} 32. Rxd8+ {[%clk 0:00:04.3]}
32... Qxd8 {[%clk 0:00:06.4]} 33. Ne6 {[%clk 0:00:05.2]} 33... Qe7 {[%clk
0:00:05.9]} 34. Nc5 {[%clk 0:00:04.9]} 34... Ng5 {[%clk 0:00:05.5]} 35. Qxb7
{[%clk 0:00:04.2]} 35... Qxb7 {[%clk 0:00:04.7]} 36. Nxb7 {[%clk 0:00:05.1]}
36... Rb6 {[%clk 0:00:04.6]} 37. Nc5 {[%clk 0:00:05.6]} 37... Rxb2 {[%clk
0:00:04.4]} 38. Nd7 {[%clk 0:00:05.9]} 38... Kg8 {[%clk 0:00:03.3]} 39. Ne5
{[%clk 0:00:05.3]} 39... Ra2 {[%clk 0:00:03.1]} 40. h4 {[%clk 0:00:05.1]} 40...
Ne6 {[%clk 0:00:02.7]} 41. Nxg6 {[%clk 0:00:05.2]} 41... Kf7 {[%clk 0:00:02.3]}
42. Ne5+ {[%clk 0:00:05]} 42... Kf6 {[%clk 0:00:02.5]} 43. Nd7+ {[%clk
0:00:05.4]} 43... Ke7 {[%clk 0:00:02.8]} 44. Nb6 {[%clk 0:00:04.6]} 44... Nd4
{[%clk 0:00:02.9]} 45. Rd1 {[%clk 0:00:03.8]} 45... Ne2+ {[%clk 0:00:02.4]} 46.
Kf1 {[%clk 0:00:03.9]} 46... Nc3 {[%clk 0:00:02.6]} 47. Rd7+ {[%clk 0:00:03.7]}
47... Ke6 {[%clk 0:00:02.9]} 48. g3 {[%clk 0:00:03.2]} 48... Ra1+ {[%clk
0:00:03]} 49. Kg2 {[%clk 0:00:03.2]} 49... Nxa4 {[%clk 0:00:03.4]} 50. Rxg7
{[%clk 0:00:02.3]} 50... Nxb6 {[%clk 0:00:02.9]} 51. Rg6+ {[%clk 0:00:03]} 51...
Ke5 {[%clk 0:00:03.2]} 52. Rxb6 {[%clk 0:00:03.9]} 52... a5 {[%clk 0:00:03.6]}
53. h5 {[%clk 0:00:04.1]} 53... Rc1 {[%clk 0:00:02.9]} 54. h6 {[%clk 0:00:04]}
54... Rc7 {[%clk 0:00:02.4]} 55. Ra6 {[%clk 0:00:04]} 55... a4 {[%clk
0:00:02.1]} 56. Rxa4 {[%clk 0:00:03.9]} 56... Kf6 {[%clk 0:00:02.4]} 57. Ra6+
{[%clk 0:00:04]} 57... Kg5 {[%clk 0:00:02.6]} 58. Kf1 {[%clk 0:00:04.4]} 58...
Rh7 {[%clk 0:00:02.6]} 59. Ke2 {[%clk 0:00:03.7]} 59... Rxh6 {[%clk 0:00:02.7]}
60. Ra5 {[%clk 0:00:03.9]} 60... Rd6 {[%clk 0:00:02.6]} 61. Ke3 {[%clk
0:00:04.3]} 61... Kg6 {[%clk 0:00:02.1]} 62. Kf4 {[%clk 0:00:04.4]} 62... Rf6
{[%clk 0:00:02]} 63. Re5 {[%clk 0:00:04.4]} 63... Rf7 {[%clk 0:00:01.9]} 64.
Re6+ {[%clk 0:00:04.7]} 64... Kg7 {[%clk 0:00:02]} 65. Rd6 {[%clk 0:00:04]}
65... Rf8 {[%clk 0:00:01.9]} 66. Kg5 {[%clk 0:00:04.3]} 66... Kg8 {[%clk
0:00:01.5]} 67. Kg6 {[%clk 0:00:03.8]} 67... f4 {[%clk 0:00:01.7]} 68. g4 {[%clk
0:00:03.6]} 68... f3 {[%clk 0:00:01.4]} 69. Re6 {[%clk 0:00:03.4]} 1-0